Workbook

Sheet Informationen
A1: Informationen
A2: Stand: 25. April 2025
A6: Rückmeldungen und Fragen zu diesem Excelblatt bitte an: AWEL, Sektion Betrieblicher Umweltschutz und Störfallvorsorge (043 259 32 62, betriebe@bd.zh.ch)
A8: Hinweise
A10: - | B10: Anwendung: Konservative Ausmassabschätzung bei einem Leckage- oder Löschwasser-Szenario bezüglich dem Schadenindikator "Umwelt" (Volumen und Fläche verunreinigte Gewässer) in Sinne der Störfallverordnung.
A11: - | B11: Resultiert eine schwere Schädigung im Sinne der Störfallverordnung so empfehlen wir die detailliertere Abklärungen durch eine Fachperson vor der Durchführung einer Risikoermittlung .
A12: - | B12: Das Blatt "Eingabe" und das Blatt "Resultate" sowie ggf. weitere Beilagen können dem Kurzbericht angehängt werden.
A14: Farbcode:
B15: Einfüllen
B16: Zwischenresultat
B17: Resultat

Sheet Eingabe
A1: Ausmassabschätzung Umwelt - Eingabe
A2: =Informationen!A2 -> Stand: 25. April 2025
A7: Allgemein | B7: Wert | C7: Einheit | D7: Bemerkungen
A8: Name des Szenarios | B8: "Leckage Umschlagplatz 1" | C8: [-] | D8: Eigener Eintrag
A9: Bezeichnung Gebinde / Stoff / Gemisch | B9: Benzin | C9: [-] | D9: Dropdown oder eigener Eintrag
A10: Dichte Stoff / Gemisch | B10: =VLOOKUP($B$9,Substanzdaten!$A$8:$I$19,6,0) -> 0.62 | C10: [kg/l], [g/ml] | D10: Verknüpfung mit "Bezeichnung Gebinde / Stoff / Gemisch". Oder eigener Eintrag.
A11: Wasserlöslichkeit / Mischbarkeit | B11: =VLOOKUP($B$9,Substanzdaten!$A$8:$I$19,3,0) -> schwer wasserlöslich und aufschwimmend | C11: [-] | D11: Verknüpfung mit "Bezeichnung Gebinde / Stoff / Gemisch". Oder eigener Eintrag.
A12: Gebindevolumen (maximal) | B12: 5,000 | C12: [l] | D12: Szenariospezifisch
A13: Stoffkonzentration im Gemisch (maximal) | B13: 10 | C13: [%] | D13: Verknüpfung mit "Bezeichnung Gebinde / Stoff / Gemisch". Oder eigener Eintrag.
A14: Eingeleitetes Volumen in Kanalisation / Gewässer | B14: 5,000 | C14: [l] | D14: Szenariospezifisch. Abhängig von Situation (Umschlag, Lagerung, Brand --> Löschwasser)
A16: Stoff / Gemisch im Gewässer (Regenabwasserkanalisation oder Schmutzabwasserkanalisation mit Entlastungsmöglichkeit ins Gewässer) | B16: =B7 -> Wert | C16: =C7 -> Einheit | D16: =D7 -> Bemerkungen
A17: Kurzzeittoxizität für Daphnien (LC50/EC50) | B17: =VLOOKUP($B$9,Substanzdaten!$A$8:$I$19,7,0) -> 8.2 | C17: [mg/l] | D17: Verknüpfung mit "Bezeichnung Gebinde / Stoff / Gemisch". Oder eigener Eintrag: z.B. ECHA, ECOTOX, GESTIS, Hazmat, Sicherheitsdatenblatt (Name, Datum)
A18: Kurzzeittoxizität für Fische (LC50/EC50) | B18: =VLOOKUP($B$9,Substanzdaten!$A$8:$I$19,8,0) -> 4.5 | C18: [mg/l] | D18: Verknüpfung mit "Bezeichnung Gebinde / Stoff / Gemisch". Oder eigener Eintrag: z.B. ECHA, ECOTOX, GESTIS, Hazmat, Sicherheitsdatenblatt (Name, Datum)
A19: Datenquelle LC50/EC50-Wert | B19: "ECHA" | C19: [-] | D19: ECHA, ECOTOX, GESTIS, Hazmat etc. oder Sicherheitsdatenblatt (Name, Datum). Ggf. eigener Eintrag. Quelle als Anhang anfügen.
A21: Stoff / Gemisch in der ARA (Schmutzabwasserkanalisation) | B21: =B7 -> Wert | C21: =C7 -> Einheit | D21: =D7 -> Bemerkungen
A22: Bezeichnung Abwasserreinigungsanlage (ARA) | B22: "Name ARA" | C22: [-] | D22: Eigener Eintrag
A23: Kurzzeittoxizität Belebtschlamm (Bakterientox.) (IC50, ...) | B23: =VLOOKUP($B$9,Substanzdaten!$A$8:$I$19,9,0) -> 15.41 | C23: [mg/l] | D23: Verknüpfung mit "Bezeichnung Gebinde / Stoff / Gemisch". Oder eigener Eintrag.
A24: Datenquelle LC50/EC50-Wert | B24: "ECHA" | C24: [-] | D24: ECHA, ECOTOX, GESTIS, Hazmat etc. oder Sicherheitsdatenblatt (Name, Datum). Ggf. eigener Eintrag. Quelle als Anhang anfügen.
A25: Volumen Vorklärung total | B25: 1 | C25: [m3] | D25: Eigener Eintrag. Informationen gemäss Homepage ARA oder ggf. Rückfrage bei betriebe@bd.zh.ch
A26: Volumen Biologie total | B26: 1 | C26: [m3] | D26: Eigener Eintrag. Informationen gemäss Homepage ARA oder ggf.Rückfrage bei betriebe@bd.zh.ch
A27: Volumen Nachklärung total | B27: 1 | C27: [m3] | D27: Eigener Eintrag. Informationen gemäss Homepage ARA oder ggf. Rückfrage bei betriebe@bd.zh.ch
A28: Eventueller Stoffrückhalt durch ARA | B28: 0 | C28: [%] | D28: Falls relevant. Separate Begründung notwendig.

Sheet Resultate
A1: Ausmassabschätzung Umwelt - Resultate
A2: =Informationen!A2 -> Stand: 25. April 2025
A4: In Abhängigkeit von der "Wasserlöslichkeit / Mischbarkeit" werden Zellen ausgeblendet.
A7: Allgemein | B7: Wert | C7: =C14 -> Einheit | D7: =D14 -> Bemerkungen
A8: =Eingabe!A8 -> Name des Szenarios | B8: =Eingabe!B8 -> "Leckage Umschlagplatz 1" | C8: =Eingabe!C8 -> [-]
A9: =A48 -> Bezeichnung Gebinde / Stoff / Gemisch | B9: =B48 -> Benzin | C9: =C48 -> [-]
A10: Eingeleitete Stoffmenge (Wirkstoffmenge) in Gewässer | B10: =B51*B52*B50/100 -> 310 | C10: [kg]
A11: =A58 -> Minimalwert Toxizität (LC50/EC50) | B11: =B58 -> 4.5 | C11: [mg/l]
A12: =A53 -> Wasserlöslichkeit / Mischbarkeit | B12: =B53 -> schwer wasserlöslich und aufschwimmend
A14: =Eingabe!A16 -> Stoff / Gemisch im Gewässer (Regenabwasserkanalisation oder Schmutzabwasserkanalisation mit Entlastungsmöglichkeit ins Gewässer) | B14: Wert | C14: =Eingabe!C7 -> Einheit | D14: =Eingabe!D7 -> Bemerkungen
A15: Stoff wasserlöslich: Abschätzung Ausmass Volumen verunreinigte Gewässer
A16: Verschmutztes Gewässervolumen total | B16: =B10*1000/B11 -> 68,889 | C16: [m3]
A18: Störfallwert | B18: =IF((0.3*((LOG10(B16/10^6)/1.5+1)))<0,0,(0.3*((LOG10(B16/10^6)/1.5+1)))) -> 0.07 | C18: [-] | D18: Schwere Schädigung ab Störfallwert 0.3
A19: Schwere Schädigung? | B19: =IF(B12="schwer wasserlöslich und aufschwimmend","Nicht zutreffend",IF(B16<1000000,"Nein","Ja")) -> Nicht zutreffend | C19: [-] | D19: Schwere Schädigung ab 1 Mio m3
A21: Stoff schwer wasserlöslich und aufschwimmend: Abschätzung Ausmass Fläche verunreinigte Gewässer
A22: Abschätzung Lachengrösse auf Wasser | B22: =B10*1000/15 -> 20,667 | C22: [m2] | D22: Annahme 15 g/m2 (Beurteilungskriterien StFV für Mineralölprodukte)
A23: Abschätzung Lachenradius auf Wasser | B23: =SQRT(B22/PI()) -> 81 | C23: [m] | D23: Annahme 15 g/m2 (Beurteilungskriterien StFV für Mineralölprodukte)
A24: Verschmutztes Gewässeroberfläche | B24: =B22/1000000 -> 0.021 | C24: [km2]
A26: Störfallwert | B26: =IF((0.3*(LOG10(B24)+1))<0,0,0.3*(LOG10(B24)+1)) -> 0.00 | C26: [-] | D26: Schwere Schädigung ab Störfallwert 0.3
A27: Schwere Schädigung wegen Oberfläche? | B27: =IF(B12="wasserlöslich", "Nicht zutreffend",IF(B24<1,"Nein","Ja")) -> Nein | C27: [-] | D27: Schwere Schädigung ab 1 km2
A29: =Eingabe!A21 -> Stoff / Gemisch in der ARA (Schmutzabwasserkanalisation) | B29: Wert | C29: =C14 -> Einheit | D29: =D14 -> Bemerkungen
A30: Stoff wasserlöslich: Abschätzung Ausmass Volumen verunreinigte Gewässer
A31: =A60 -> Bezeichnung Abwasserreinigungsanlage (ARA) | B31: "Name ARA" | C31: [-]
A32: Totales Mischvolumen inkl. Biologie (alle Strassen) | B32: =B62+B63 -> 2 | C32: [m3] | D32: ohne Nachklärung
A33: Konzentration Wirkstoff in Biologie (alle Strassen) | B33: =1000*B10/B32 -> 155000 | C33: [mg/l]
A34: =A61 -> Kurzzeittoxizität Belebtschlamm (Bakterientox.) (IC50, ...) | B34: =B61 -> 15.41 | C34: =C61 -> [mg/l]
A35: Überlastung Biologie der ARA aufgrund Toxizität zu erwarten? | B35: =IF(B12="schwer wasserlöslich und aufschwimmend","Nicht zutreffend",IF(B33<B34,"Nein","Ja")) -> Nicht zutreffend | D35: Hinweis an ARA. Kein Schadenindikator gemäss Störfallversordnung.
A38: Totales Mischvolumen inkl. Nachklärung (alle Strassen) | B38: =B63+B64+B62 -> 3 | C38: [m3] | D38: mit Nachklärung
A39: Konzentration Wirkstoff in Nachklärung (alle Strassen) | B39: =1000*B10/B38 -> 103333.33 | C39: [mg/l]
A40: =A65 -> Eventueller Stoffrückhalt durch ARA | B40: =B65 -> 0 | C40: =C65 -> [%]
A41: Stoffkonzentration im Auslauf | B41: =(B39)-B39*(B40/100) -> 103333.33 | C41: [mg/l]
A42: =A58 -> Minimalwert Toxizität (LC50/EC50) | B42: =B11 -> 4.50 | C42: [mg/l]
A43: Mögliche schwere Schädigung Einleitgewässer nach ARA? | B43: =IF(B12="schwer wasserlöslich und aufschwimmend","Nicht zutreffend",IF(B41<=B42,"Nein","Ja")) -> Nicht zutreffend | C43: [-] | D43: Falls ja sind ggf. genauere Abklärungen notwendig
A46: Eingaben gemäss Blatt "Eingabe"
A47: =Eingabe!A7 -> Allgemein | B47: =Eingabe!B7 -> Wert | C47: =Eingabe!C7 -> Einheit
A48: =Eingabe!A9 -> Bezeichnung Gebinde / Stoff / Gemisch | B48: =Eingabe!B9 -> Benzin | C48: =Eingabe!C9 -> [-]
A49: =Eingabe!A12 -> Gebindevolumen (maximal) | B49: =Eingabe!B12 -> 5000 | C49: =Eingabe!C12 -> [l]
A50: =Eingabe!A13 -> Stoffkonzentration im Gemisch (maximal) | B50: =Eingabe!B13 -> 10 | C50: =Eingabe!C13 -> [%]
A51: =Eingabe!A14 -> Eingeleitetes Volumen in Kanalisation / Gewässer | B51: =Eingabe!B14 -> 5000 | C51: =Eingabe!C14 -> [l]
A52: =Eingabe!A10 -> Dichte Stoff / Gemisch | B52: =Eingabe!B10 -> 0.62 | C52: =Eingabe!C10 -> [kg/l], [g/ml]
A53: =Eingabe!A11 -> Wasserlöslichkeit / Mischbarkeit | B53: =Eingabe!B11 -> schwer wasserlöslich und aufschwimmend | C53: =Eingabe!C11 -> [-]
A55: =Eingabe!A16 -> Stoff / Gemisch im Gewässer (Regenabwasserkanalisation oder Schmutzabwasserkanalisation mit Entlastungsmöglichkeit ins Gewässer)
A56: =Eingabe!A17 -> Kurzzeittoxizität für Daphnien (LC50/EC50) | B56: =Eingabe!B17 -> 8.2 | C56: =Eingabe!C17 -> [mg/l]
A57: =Eingabe!A18 -> Kurzzeittoxizität für Fische (LC50/EC50) | B57: =Eingabe!B18 -> 4.5 | C57: =Eingabe!C18 -> [mg/l]
A58: Minimalwert Toxizität (LC50/EC50) | B58: =MIN(B56,B57) -> 4.5 | C58: [mg/l]
A60: =Eingabe!A22 -> Bezeichnung Abwasserreinigungsanlage (ARA) | B60: =Eingabe!B22 -> "Name ARA" | C60: =Eingabe!C22 -> [-]
A61: =Eingabe!A23 -> Kurzzeittoxizität Belebtschlamm (Bakterientox.) (IC50, ...) | B61: =Eingabe!B23 -> 15.41 | C61: =Eingabe!C23 -> [mg/l]
A62: =Eingabe!A25 -> Volumen Vorklärung total | B62: =Eingabe!B25 -> 1 | C62: [m3]
A63: =Eingabe!A26 -> Volumen Biologie total | B63: =Eingabe!B26 -> 1 | C63: [m3]
A64: =Eingabe!A27 -> Volumen Nachklärung total | B64: =Eingabe!B27 -> 1 | C64: [m3]
A65: =Eingabe!A28 -> Eventueller Stoffrückhalt durch ARA | B65: =Eingabe!B28 -> 0 | C65: =Eingabe!C28 -> [%]

Sheet Substanzdaten (hidden)
A1: Substanzdaten für die Eingabe
A2: =Informationen!A2 -> Stand: 25. April 2025
A7: Stoffname | B7: CAS-Nr. | D7: Konzentration [%] | E7: MS [kg] | F7: Dichte [g/ml] | G7: Fische (short term) [mg/l] | H7: Daphnien (short term, invertebr.) [mg/l] | I7: Belebtschlamm/ Bakterien (microorg.; algen, cyanob.) [mg/l]
A8: Aceton | B8: 67-64-1 | C8: wasserlöslich | D8: 100 | E8: 20000 | F8: 0.79 | G8: =1000*5.54 -> 5540 | H8: 2100 | I8: 61150
A9: Ammoniak, 35% | B9: 1336-21-6 | C9: wasserlöslich | D9: 35 | E9: 2000 | F9: 0.88 | G9: 0.75 | H9: 101 | I9: 2700
A10: Benzin | B10: 8006-61-9 | C10: schwer wasserlöslich und aufschwimmend | D10: 100 | E10: 200000 | F10: 0.62 | G10: 8.2 | H10: 4.5 | I10: 15.41
A11: Blausäure | B11: 74-90-8 | C11: wasserlöslich | D11: 100 | E11: 200 | F11: 0.69 | G11: 0.025 | H11: 0.13 | I11: 0.16
A12: Diesel | B12: 68476-34-6 | C12: schwer wasserlöslich und aufschwimmend | D12: 100 | E12: 500000 | F12: 0.8 | G12: 100 | H12: 180 | I12: 10
A13: Ethanol | B13: 64-17-5 | C13: wasserlöslich | D13: 100 | E13: 20000 | F13: 0.785 | G13: 14200 | H13: 10000 | I13: 5800
A14: Glycerin | B14: 56-81-5 | C14: wasserlöslich | D14: 100 | E14: keine MS | F14: 1.261 | G14: 54000 | H14: 10000 | I14: 10000
A15: Heizöl | B15: 68476-30-2 | C15: schwer wasserlöslich und aufschwimmend | D15: 100 | E15: 500000 | F15: 0.8 | G15: 100 | H15: 180 | I15: 10
A16: Heptan | B16: 142-82-5 | C16: schwer wasserlöslich und aufschwimmend | D16: 100 | E16: 2000 | F16: 0.69 | G16: 5.738 | H16: 1.5 | I16: 4.338
A17: Hexan | B17: 110-54-3 | C17: schwer wasserlöslich und aufschwimmend | D17: 100 | E17: 20000 | F17: 0.661 | G17: 12.51 | H17: 21.85 | I17: 9.285
A18: Methanol | B18: 67-56-1 | C18: wasserlöslich | D18: 100 | E18: 2000 | F18: 0.79 | G18: 15400 | H18: 18260 | I18: 1000
A19: Xylol | B19: 1330-20-7 | C19: schwer wasserlöslich und aufschwimmend | D19: 100 | E19: 20000 | F19: 0.86 | G19: 2.6 | H19: 1 | I19: 2.2
A20: -

Sheet Dropdown (hidden)
A1: H-Sätze | C1: WGK
A2: H400 | C2: 1 | E2: wasserlöslich
A3: H410 | C3: 2 | E3: schwer wasserlöslich und aufschwimmend
A4: H411 | C4: 3 | E4: -
A5: - | C5: -
